fUST/lending_fUST_20240801
["ID","MTS","AMOUNT","RATE_DAILY","PERIOD"]
[333795365,1722515195162,-166.666666,0.00012198,2]
[333795366,1722515195186,-170.152961,0.00012291,2]
[333795367,1722515195209,-170.152961,0.0001235,2]
[333795368,1722515195232,-170.152961,0.00012408,2]
[333795369,1722515195259,-170.152961,0.00012466,2]
[333795370,1722515195282,-166.666666,0.00012522,2]
[333795371,1722515195306,-170.152961,0.00012524,2]
[333795372,1722515195330,-170.152961,0.00012582,2]
[333795373,1722515195353,-170.152961,0.00012641,2]
[333795374,1722515195375,-170.152961,0.00012699,2]
[333795375,1722515195398,-170.152961,0.00012757,2]
[333795376,1722515195422,-170.152961,0.00012815,2]
[333795377,1722515195443,-166.666666,0.00012845,2]
[333795378,1722515195464,-170.152961,0.00012874,2]
[333795379,1722515195486,-170.152961,0.00012932,2]
[333795380,1722515195508,-168.900629,0.00012986,2]
[333795381,1722515195530,-1000.0,0.00013,13]
[333795382,1722515195550,-166.666666,0.00013169,2]
[333795383,1722515195571,-367.7699373,0.0001331,2]
[333795384,1722515195593,-3658.94814554,0.00013374,2]
[333795517,1722515438692,-1762.87351581,0.00013274,2]
[333795518,1722515438703,-1762.87351577,0.00013355,2]
[333795519,1722515438712,-300.0,0.00013363,2]
[333795520,1722515438722,-300.0,0.00013363,2]
[333795521,1722515438732,-7098.15135161,0.00013364,2]
[333795522,1722515438854,-4470.01465367,0.00013364,2]
[333795561,1722515441502,-14900.77989819,0.00013364,2]
[333795562,1722515441515,-4977.39548417,0.00013364,2]
[333795563,1722515441526,-3951.65903696,0.00013364,2]
[333795596,1722515443663,-53612.5853968,0.00013364,2]
[333795598,1722515443672,-9642.31985145,0.00013374,5]
[333795600,1722515443682,-211.70912317,0.00013374,2]
[333795602,1722515443692,-167002.77849606,0.00013374,2]
[333795604,1722515443701,-7969.36638871,0.00013374,2]
[333795606,1722515443710,-185.36928895,0.00013374,2]
[333795609,1722515443720,-1762.87351577,0.00013436,2]
[333795611,1722515443731,-166.666666,0.00013493,2]
[333795613,1722515443740,-1762.87351577,0.00013516,2]
[333795615,1722515443750,-1762.87351577,0.00013597,2]
[333795617,1722515443761,-6046.45570522,0.00013655,2]
[333795620,1722515443771,-151.0,0.00013677,2]
[333795622,1722515443781,-175.833892,0.00013677,2]
[333795624,1722515443794,-175.833892,0.00013677,2]
[333795626,1722515443803,-44505.2929107,0.00013677,2]
[333795628,1722515443813,-10036.68486249,0.00013683,2]
[333795630,1722515443823,-503.08,0.00013686,2]
[333795632,1722515443833,-2214.48,0.00013687,2]
[333795635,1722515443843,-2214.48,0.00013687,2]
[333795637,1722515443852,-2214.48,0.00013687,2]
[333795639,1722515443863,-833.14759052,0.00013688,2]
[333795641,1722515443873,-175.833892,0.00013688,2]
[333795643,1722515443884,-175.833892,0.00013688,2]
[333795645,1722515443894,-151.0,0.00013688,2]
[333795647,1722515443904,-151.0,0.00013688,2]
[333795649,1722515443914,-151.0,0.00013688,2]
[333795651,1722515443923,-151.0,0.00013688,2]
[333795653,1722515443932,-132337.59623674,0.00013688,2]
[333795655,1722515443945,-1178.28249526,0.00013688,2]
[333795657,1722515443955,-2180.05405328,0.00013697,2]
[333795659,1722515443967,-34.42594672,0.00013697,2]
[333795661,1722515443977,-2214.48,0.00013697,2]
[333795663,1722515443986,-2214.48,0.00013697,2]
[333795665,1722515443996,-1675.53967394,0.00013698,5]
[333795742,1722515951214,244.72553756,9.999e-05,2]
[333795747,1722516124149,200.0,0.0001,2]
[333795771,1722516569994,5156.60939824,0.0001,2]
[333795812,1722516631932,-166.666666,0.00012044,2]
[333795813,1722516631941,-3437.73959883,0.00012121,2]
[333795814,1722516631951,-170.152961,0.00012131,2]
[333795815,1722516631961,-156.24216229,0.00012216,2]
[333795816,1722516631970,-170.152961,0.00012257,2]
[333795817,1722516631979,-166.666666,0.00012372,2]
[333795818,1722516631989,-170.152961,0.00012383,2]
[333795819,1722516631998,-170.152961,0.0001251,2]
[333795820,1722516632007,-170.152961,0.00012636,2]
[333795821,1722516632017,-166.666666,0.000127,2]
[333795822,1722516632026,-170.152961,0.00012763,2]
[333795824,1722516632035,-172.164815,0.00012986,2]
[333795825,1722516632045,-153.0,0.00013,2]
[333795826,1722516632054,-166.666666,0.00013029,2]
[333795827,1722516632063,-206.8816348,0.00013078,2]
[333795828,1722516632073,-3835.15380411,0.00013212,2]
[333795829,1722516632082,-367.7699373,0.00013219,2]
[333795830,1722516632092,-166.666666,0.00013357,2]
[333795831,1722516632103,-413.5169349,0.00013507,2]
[333795832,1722516632112,-1764.30306935,0.00013585,2]
[333795833,1722516632123,-286.42073265,0.0001359,2]
[333795834,1722516632132,-300.0,0.00013598,2]
[333795835,1722516632142,-300.0,0.00013599,2]
[333795837,1722516632152,-28415.98387454,0.000136,2]
[333795839,1722516632162,-166.666666,0.00013685,2]
[333795841,1722516632174,-1660.86,0.00013686,2]
[333795843,1722516632189,-45844.98202928,0.00013688,2]
[333795915,1722516637797,-17113.249733,0.00013688,2]
[333795984,1722516642866,-36364.79569912,0.00013688,2]
[333795985,1722516642876,-18000.0,0.0001369,2]
[333795986,1722516642885,-19400.0,0.0001369,2]
[333795987,1722516642895,-1660.86,0.00013697,2]
[333795988,1722516642904,-1660.86,0.00013697,2]
[333795989,1722516642914,-1660.86,0.00013697,2]
[333795990,1722516642924,-7969.36638871,0.00013698,2]
[333795992,1722516642933,-3388.74350524,0.00013698,2]
[333795994,1722516642943,-500.0,0.00013698,2]
[333795996,1722516642952,-151.0,0.00013698,2]
[333795998,1722516642962,-500.0,0.00013698,2]
[333796001,1722516642972,-151.0,0.00013698,2]
[333796003,1722516642981,-260.8,0.00013698,2]
[333796004,1722516642990,-500.0,0.00013698,2]
[333796007,1722516642999,-500.0,0.00013698,2]
[333796009,1722516643009,-153.25509,0.00013698,2]
[333796011,1722516643018,-500.0,0.00013698,2]
[333796012,1722516643028,-506.43917156,0.00013698,2]
[333796013,1722516643038,-500.0,0.00013698,2]
[333796014,1722516643048,-512.84981989,0.00013698,2]
[333796015,1722516643058,-500.0,0.00013698,2]
[333796016,1722516643067,-153.92193523,0.00013698,2]
[333796017,1722516643076,-500.0,0.00013698,2]
[333796018,1722516643085,-151.0,0.00013698,2]
[333796019,1722516643095,-151.0,0.00013698,2]
[333796020,1722516643105,-500.0,0.00013698,2]
[333796022,1722516643114,-500.0,0.00013698,2]
[333796023,1722516643123,-500.0,0.00013698,2]
[333796024,1722516643133,-151.235269,0.00013698,2]
[333796025,1722516643142,-500.0,0.00013698,2]
[333796026,1722516643152,-500.0,0.00013698,2]
[333796027,1722516643162,-500.0,0.00013698,2]
[333796028,1722516643172,-500.0,0.00013698,2]
[333796029,1722516643185,-500.0,0.00013698,2]
[333796030,1722516643195,-500.0,0.00013698,2]
[333796031,1722516643204,-500.0,0.00013698,2]
[333796032,1722516643215,-500.0,0.00013698,2]
[333796033,1722516643226,-236.88596401,0.00013698,2]
[333796034,1722516643239,-607.28,0.00013698,2]
[333796035,1722516643253,-607.28,0.00013698,2]
[333796036,1722516643272,-607.28,0.00013698,2]
[333796037,1722516643282,-607.28,0.00013698,2]
[333796038,1722516643292,-500.0,0.00013698,2]
[333796039,1722516643302,-500.0,0.00013698,2]
[333796040,1722516643314,-500.0,0.00013698,2]
[333796041,1722516643324,-151.0,0.00013698,2]
[333796042,1722516643334,-151.0,0.00013698,2]
[333796043,1722516643345,-151.0,0.00013698,2]
[333796044,1722516643355,-500.0,0.00013698,2]
[333796045,1722516643364,-151.0,0.00013698,2]
[333796046,1722516643374,-151.0,0.00013698,2]
[333796047,1722516643384,-151.0,0.00013698,2]
[333796048,1722516643394,-500.0,0.00013698,2]
[333796049,1722516643405,-151.0,0.00013698,2]
[333796050,1722516643415,-151.0,0.00013698,2]
[333796051,1722516643425,-347.18982331,0.00013698,2]
[333796052,1722516643452,-156.29891983,0.00013698,2]
[333796053,1722516643462,-500.0,0.00013698,2]
[333796054,1722516643472,-500.0,0.00013698,2]
[333796055,1722516643482,-151.0,0.00013698,2]
[333796056,1722516643492,-500.0,0.00013698,2]
[333796057,1722516643502,-500.0,0.00013698,2]
[333796058,1722516643512,-500.0,0.00013698,2]
[333796059,1722516643522,-571.03951442,0.00013698,2]
[333796060,1722516643532,-500.0,0.00013698,2]
[333796061,1722516643542,-500.0,0.00013698,2]
[333796062,1722516643551,-536.20268313,0.00013698,2]
[333796063,1722516643561,-500.0,0.00013698,2]
[333796064,1722516643571,-500.0,0.00013698,2]
[333796065,1722516643581,-500.0,0.00013698,2]
[333796066,1722516643590,-500.0,0.00013698,2]
[333796067,1722516643601,-500.0,0.00013698,2]
[333796068,1722516643611,-500.0,0.00013698,2]
[333796069,1722516643620,-507.20771898,0.00013698,2]
[333796070,1722516643630,-444.67572387,0.00013698,2]
[333796071,1722516643640,-500.0,0.00013698,2]
[333796072,1722516643649,-500.0,0.00013698,2]
[333796073,1722516643659,-500.0,0.00013698,2]
[333796074,1722516643668,-500.0,0.00013698,2]
[333796075,1722516643677,-500.0,0.00013698,2]
[333796076,1722516643687,-500.0,0.00013698,2]
[333796077,1722516643696,-500.0,0.00013698,2]
[333796078,1722516643706,-500.0,0.00013698,2]
[333796079,1722516643715,-151.0,0.00013698,2]
[333796080,1722516643724,-177.75794468,0.00013698,2]
[333796081,1722516643734,-500.0,0.00013698,2]
[333796082,1722516643744,-500.0,0.00013698,2]
[333796083,1722516643754,-500.0,0.00013698,2]
[333796084,1722516643783,-672.47,0.00013698,2]
[333796085,1722516643792,-605.53,0.00013698,2]
[333796086,1722516643802,-151.0,0.00013698,2]
[333796087,1722516643811,-151.0,0.00013698,2]
[333796088,1722516643821,-151.0,0.00013698,2]
[333796089,1722516643831,-500.0,0.00013698,2]
[333796090,1722516643840,-151.0,0.00013698,2]
[333796091,1722516643849,-451.97917064,0.00013698,2]
[333796252,1722517400294,500.0,0.00027,120]
[333796260,1722517513325,185.05,0.000178,120]
[333796284,1722517632918,207.43,0.000178,120]
[333796405,1722517832198,-166.666666,0.00012336,2]
[333796407,1722517832208,-787.8768228,0.0001234,2]
[333796409,1722517832218,-130.93153621,0.00012596,2]
[333796615,1722517838036,-3085.09129839,0.00012596,2]
[333796616,1722517838046,-172.164815,0.00012986,2]
[333796617,1722517838056,-1000.0,0.00013,13]
[333796618,1722517838065,-153.0,0.00013,2]
[333796619,1722517838074,-294.1746601,0.00013413,2]
[333796620,1722517838083,-300.0,0.00013499,2]
[333796621,1722517838093,-153.0,0.000135,2]
[333796622,1722517838102,-294.1746601,0.000135,2]
[333796623,1722517838111,-312.3112718,0.000135,2]
[333796624,1722517838120,-294.1746601,0.000135,2]
[333796625,1722517838130,-4525.44270776,0.00013561,2]
[333796626,1722517838139,-448.39390553,0.00013597,2]
[333796630,1722517838303,-1362.41883513,0.00013597,2]
[333796633,1722517838312,-229.13658612,0.00013598,2]
[333796638,1722517838321,-155.0,0.0001364,2]
[333796640,1722517838332,-1172.65399161,0.00013688,2]
[333796659,1722517838516,-72.41387356,0.00013688,2]
[333796762,1722517840089,-7575.02988,0.00013688,2]
[333796772,1722517840210,-5342.15019564,0.00013688,2]
[333796775,1722517840235,-15471.86897359,0.00013688,2]
[333796777,1722517840244,-367.7699373,0.00013695,2]
[333796778,1722517840253,-1045.55374857,0.00013697,2]
[333796786,1722517843010,-338.49625143,0.00013697,2]
[333796787,1722517843020,-1384.05,0.00013697,2]
[333796788,1722517843029,-1384.05,0.00013697,2]
[333796789,1722517843039,-500.0,0.00013698,2]
[333796790,1722517843049,-500.0,0.00013698,2]
[333796791,1722517843058,-500.0,0.00013698,2]
[333796792,1722517843067,-500.0,0.00013698,2]
[333796793,1722517843077,-500.0,0.00013698,2]
[333796794,1722517843086,-500.0,0.00013698,2]
[333796795,1722517843096,-500.0,0.00013698,2]
[333796796,1722517843105,-500.0,0.00013698,2]
[333796797,1722517843114,-500.0,0.00013698,2]
[333796798,1722517843124,-500.0,0.00013698,2]
[333796799,1722517843134,-500.0,0.00013698,2]
[333796800,1722517843145,-501.47357418,0.00013698,2]
[333796801,1722517843155,-500.0,0.00013698,2]
[333796802,1722517843164,-500.0,0.00013698,2]
[333796803,1722517843176,-501.17,0.00013698,2]
[333796805,1722517843186,-500.0,0.00013698,2]
[333796806,1722517843196,-500.0,0.00013698,2]
[333796807,1722517843206,-528.47,0.00013698,2]
[333796808,1722517843215,-500.0,0.00013698,2]
[333796809,1722517843225,-500.0,0.00013698,2]
[333796810,1722517843234,-506.06,0.00013698,2]
[333796811,1722517843244,-506.06,0.00013698,2]
[333796812,1722517843253,-506.06,0.00013698,2]
[333796813,1722517843262,-500.0,0.00013698,2]
[333796814,1722517843272,-500.0,0.00013698,2]
[333796815,1722517843282,-500.0,0.00013698,2]
[333796816,1722517843291,-500.0,0.00013698,2]
[333796817,1722517843300,-571.92,0.00013698,2]
[333796818,1722517843310,-173.0145936,0.00013698,2]
[333796819,1722517843321,-500.0,0.00013698,2]
[333796820,1722517843331,-500.0,0.00013698,2]
[333796821,1722517843341,-539.0115133,0.00013698,2]
[333796822,1722517843351,-500.0,0.00013698,2]
[333796823,1722517843361,-511.09580272,0.00013698,2]
[333796824,1722517843371,-500.0,0.00013698,2]
[333796825,1722517843381,-500.0,0.00013698,2]
[333796826,1722517843392,-500.0,0.00013698,2]
[333796827,1722517843402,-500.0,0.00013698,2]
[333796828,1722517843411,-500.0,0.00013698,2]
[333796829,1722517843421,-500.0,0.00013698,2]
[333796830,1722517843430,-500.0,0.00013698,2]
[333796831,1722517843439,-289.29299911,0.00013698,2]
[333796832,1722517843449,-500.0,0.00013698,2]
[333796833,1722517843459,-500.0,0.00013698,2]
[333796834,1722517843469,-500.0,0.00013698,2]
[333796835,1722517843478,-540.3863357,0.00013698,2]
[333796836,1722517843489,-150.0,0.00013698,2]
[333796837,1722517843499,-580.29,0.00013698,2]
[333796838,1722517843509,-500.0,0.00013698,2]
[333796839,1722517843519,-500.0,0.00013698,2]
[333796840,1722517843528,-507.16405368,0.00013698,2]
[333796841,1722517843538,-500.0,0.00013698,2]
[333796842,1722517843548,-431.16176155,0.00013698,2]
[333796843,1722517843557,-500.0,0.00013698,2]
[333796844,1722517843566,-505.11933782,0.00013698,2]
[333796845,1722517843580,-260.47051285,0.00013698,2]
[333796846,1722517843590,-500.0,0.00013698,2]
[333796847,1722517843603,-500.0,0.00013698,2]
[333796848,1722517843618,-500.0,0.00013698,2]
[333796849,1722517843631,-644.45,0.00013698,2]
[333796850,1722517843645,-228.48747085,0.00013698,2]
[333796851,1722517843658,-500.0,0.00013698,2]
[333796852,1722517843670,-500.0,0.00013698,2]
[333796853,1722517843684,-502.40720152,0.00013698,2]
[333796854,1722517843697,-500.0,0.00013698,2]
[333796855,1722517843710,-500.0,0.00013698,2]
[333796856,1722517843721,-567.02,0.00013698,2]
[333796857,1722517843734,-500.0,0.00013698,2]
[333796858,1722517843748,-500.0,0.00013698,2]
[333796859,1722517843761,-500.0,0.00013698,2]
[333796860,1722517843775,-500.0,0.00013698,2]
[333796861,1722517843787,-151.0,0.00013698,2]
[333796862,1722517843801,-894.0,0.00013698,2]
[333796863,1722517843813,-500.0,0.00013698,2]
[333796864,1722517843824,-500.0,0.00013698,2]
[333796865,1722517843836,-503.15,0.00013698,2]
[333796866,1722517843848,-500.0,0.00013698,2]
[333796867,1722517843861,-500.0,0.00013698,2]
[333796868,1722517843874,-500.0,0.00013698,2]
[333796869,1722517843885,-500.0,0.00013698,2]
[333796870,1722517843899,-500.0,0.00013698,2]
[333796871,1722517843909,-500.0,0.00013698,2]
[333796872,1722517843920,-918.15,0.00013698,2]
[333796873,1722517843931,-152.246061,0.00013698,2]
[333796874,1722517843942,-500.0,0.00013698,2]
[333796875,1722517843954,-622.19503766,0.00013698,2]
[333796876,1722517843966,-1232.72,0.00013698,2]
[333796877,1722517843978,-500.0,0.00013698,2]
[333796878,1722517843991,-210.58092546,0.00013698,2]
[333796879,1722517844002,-500.0,0.00013698,2]
[333796880,1722517844016,-500.0,0.00013698,2]
[333796881,1722517844029,-151.25119,0.00013698,2]
[333796882,1722517844041,-500.0,0.00013698,2]
[333796883,1722517844054,-500.0,0.00013698,2]
[333796884,1722517844066,-500.0,0.00013698,2]
[333796885,1722517844076,-151.0,0.00013698,2]
[333796886,1722517844086,-151.0,0.00013698,2]
[333796887,1722517844096,-500.0,0.00013698,2]
[333796888,1722517844107,-500.0,0.00013698,2]
[333796889,1722517844121,-500.0,0.00013698,2]
[333796890,1722517844134,-500.0,0.00013698,2]
[333796891,1722517844149,-500.0,0.00013698,2]
[333796892,1722517844160,-500.0,0.00013698,2]
[333796893,1722517844171,-856.2,0.00013698,2]
[333796894,1722517844184,-151.0,0.00013698,2]
[333796895,1722517844195,-151.0,0.00013698,2]
[333796896,1722517844207,-553.82563815,0.00013698,2]
[333796897,1722517844219,-737.43,0.00013698,2]
[333796898,1722517844230,-500.0,0.00013698,2]
[333796899,1722517844240,-151.0,0.00013698,2]
[333796900,1722517844250,-151.0,0.00013698,2]
[333796901,1722517844261,-1670.88,0.00013698,2]
[333796902,1722517844271,-500.0,0.00013698,2]
[333796903,1722517844282,-500.0,0.00013698,2]
[333796904,1722517844293,-502.88311085,0.00013698,2]
[333796905,1722517844304,-702.86,0.00013698,2]
[333796906,1722517844316,-500.0,0.00013698,2]
[333796907,1722517844327,-168.975526,0.00013698,2]
[333796908,1722517844337,-290.87315042,0.00013698,2]
[333796909,1722517844348,-168.975526,0.00013698,2]
[333796910,1722517844359,-506.33901798,0.00013698,2]
[333796911,1722517844370,-500.0,0.00013698,2]
[333796912,1722517844381,-500.0,0.00013698,2]
[333796913,1722517844394,-500.0,0.00013698,2]
[333796914,1722517844404,-151.0,0.00013698,2]
[333796915,1722517844416,-500.0,0.00013698,2]
[333796916,1722517844427,-500.0,0.00013698,2]
[333796917,1722517844439,-151.0,0.00013698,2]
[333796918,1722517844457,-500.0,0.00013698,2]
[333796919,1722517844468,-500.0,0.00013698,2]
[333796920,1722517844479,-620.3,0.00013698,2]
[333796921,1722517844491,-620.3,0.00013698,2]
[333796922,1722517844503,-620.3,0.00013698,2]
[333796923,1722517844514,-151.0,0.00013698,2]
[333796924,1722517844525,-151.0,0.00013698,2]
[333796925,1722517844535,-151.0,0.00013698,2]
[333796926,1722517844546,-949.09,0.00013698,2]
[333796927,1722517844557,-500.0,0.00013698,2]
[333796928,1722517844570,-500.0,0.00013698,2]
[333796929,1722517844580,-2857.63,0.00013698,2]
[333796930,1722517844591,-500.0,0.00013698,2]
[333796931,1722517844603,-595.42,0.00013698,2]
[333796932,1722517844614,-500.0,0.00013698,2]
[333796933,1722517844626,-1973.84,0.00013698,2]
[333796934,1722517844637,-500.0,0.00013698,2]
[333796935,1722517844651,-615.95,0.00013698,2]
[333796936,1722517844662,-915.3,0.00013698,2]
[333796937,1722517844673,-597.76,0.00013698,2]
[333796938,1722517844684,-151.066005,0.00013698,2]
[333796939,1722517844695,-3195.18,0.00013698,2]
[333796940,1722517844707,-151.066005,0.00013698,2]
[333796941,1722517844718,-1277.44,0.00013698,2]
[333796942,1722517844729,-151.0,0.00013698,2]
[333796943,1722517844740,-151.0,0.00013698,2]
[333796944,1722517844753,-2263.57,0.00013698,2]
[333796945,1722517844764,-500.0,0.00013698,2]
[333796946,1722517844776,-151.483895,0.00013698,2]
[333796947,1722517844787,-151.0,0.00013698,2]
[333796948,1722517844799,-4108.64,0.00013698,2]
[333796949,1722517844810,-500.0,0.00013698,2]
[333796950,1722517844820,-3613.1,0.00013698,2]
[333796951,1722517844832,-536.64,0.00013698,2]
[333796952,1722517844844,-586.25,0.00013698,2]
[333796953,1722517844855,-984.9,0.00013698,2]
[333796954,1722517844866,-655.19,0.00013698,2]
[333796955,1722517844877,-1048.38,0.00013698,2]
[333796956,1722517844888,-500.0,0.00013698,2]
[333796957,1722517845026,-500.0,0.00013698,2]
[333796958,1722517845045,-799.21,0.00013698,2]
[333796959,1722517845055,-619.36,0.00013698,2]
[333796960,1722517845065,-761.26,0.00013698,2]
[333796961,1722517845074,-151.0,0.00013698,2]
[333796962,1722517845083,-643.95,0.00013698,2]
[333796963,1722517845093,-151.0,0.00013698,2]
[333796964,1722517845102,-151.0,0.00013698,2]
[333796965,1722517845111,-151.0,0.00013698,2]
[333796966,1722517845121,-500.0,0.00013698,2]
[333796967,1722517845131,-500.0,0.00013698,2]
[333796968,1722517845142,-606.66,0.00013698,2]
[333796969,1722517845152,-500.0,0.00013698,2]
[333796970,1722517845161,-500.0,0.00013698,2]
[333796971,1722517845171,-151.0,0.00013698,2]
[333796972,1722517845181,-660.68,0.00013698,2]
[333796973,1722517845192,-243.845005,0.00013698,2]
[333796974,1722517845201,-500.0,0.00013698,2]
[333796975,1722517845210,-243.845005,0.00013698,2]
[333796976,1722517845220,-500.0,0.00013698,2]
[333796977,1722517845229,-500.0,0.00013698,2]
[333796978,1722517845239,-500.0,0.00013698,2]
[333796979,1722517845248,-500.0,0.00013698,2]
[333796980,1722517845257,-500.0,0.00013698,2]
[333796981,1722517845267,-500.0,0.00013698,2]
[333796982,1722517845276,-500.0,0.00013698,2]
[333796983,1722517845286,-151.0,0.00013698,2]
[333796984,1722517845295,-500.0,0.00013698,2]
[333796985,1722517845304,-2211.63,0.00013698,2]
[333796986,1722517845314,-1234.34,0.00013698,2]
[333796987,1722517845323,-151.0,0.00013698,2]
[333796988,1722517845333,-500.0,0.00013698,2]
[333796989,1722517845342,-568.73,0.00013698,2]
[333796990,1722517845351,-500.0,0.00013698,2]
[333796991,1722517845360,-500.0,0.00013698,2]
[333796992,1722517845370,-500.0,0.00013698,2]
[333796993,1722517845379,-151.0,0.00013698,2]
[333796994,1722517845388,-585.52,0.00013698,2]
[333796995,1722517845398,-500.0,0.00013698,2]
[333796996,1722517845407,-151.0,0.00013699,2]
[333796997,1722517845417,-150.112233,0.000137,2]
[333796998,1722517845426,-238.750886,0.00013799,2]
[333796999,1722517845436,-272.90490034,0.000138,2]
[333797001,1722517845451,-500.0,0.00013849,2]
[333797002,1722517845460,-151.0,0.0001385,2]
[333797003,1722517845469,-151.066005,0.0001385,2]
[333797004,1722517845479,-151.066005,0.0001385,2]
[333797005,1722517845489,-151.0,0.0001385,2]
[333797006,1722517845499,-151.0,0.0001385,2]
[333797007,1722517845508,-151.0,0.0001385,2]
[333797008,1722517845518,-151.0,0.0001385,2]
[333797009,1722517845528,-151.0,0.0001385,2]
[333797010,1722517845537,-151.0,0.00013851,2]
[333797011,1722517845547,-151.0,0.00013851,2]
[333797012,1722517845556,-151.0,0.00013851,2]
[333797013,1722517845566,-151.0,0.00013851,2]
[333797014,1722517845581,-151.0,0.00013851,2]
[333797015,1722517845591,-151.0,0.00013851,2]
[333797016,1722517845600,-168.975526,0.00013851,2]
[333797017,1722517845610,-168.975526,0.00013851,2]
[333797018,1722517845622,-151.0,0.00013851,2]
[333797019,1722517845632,-151.0,0.00013851,2]
[333797020,1722517845643,-151.0,0.00013851,2]
[333797021,1722517845652,-151.0,0.00013851,2]
[333797022,1722517845664,-4606.06185429,0.00013852,2]
[333797025,1722517845807,-5078.132018,0.00013852,2]
[333797026,1722517845819,-11861.84847161,0.00013852,2]
[333797225,1722519032222,-167.759228,0.00012002,2]
[333797227,1722519032232,-168.303534,0.0001248,2]
[333797229,1722519032242,-168.303534,0.0001253,2]
[333797231,1722519032251,-142.71854953,0.00012547,2]
[333797239,1722519032309,-25.04067847,0.00012547,2]
[333797241,1722519032318,-168.303534,0.0001258,2]
[333797243,1722519032328,-168.303534,0.0001263,2]
[333797245,1722519032338,-168.303534,0.0001268,2]
[333797246,1722519032347,-168.303534,0.0001273,2]
[333797248,1722519032356,-168.303534,0.0001278,2]
[333797250,1722519032366,-168.303534,0.0001283,2]
[333797252,1722519032375,-168.303534,0.0001288,2]
[333797254,1722519032385,-168.303534,0.0001293,2]
[333797255,1722519032395,-168.303534,0.0001298,2]
[333797257,1722519032404,-171.698502,0.00012986,2]
[333797259,1722519032413,-168.303534,0.0001303,2]
[333797260,1722519032422,-168.303534,0.0001308,2]
[333797262,1722519032434,-167.759228,0.00013092,2]
[333797263,1722519032445,-168.303534,0.0001313,2]
[333797265,1722519032454,-1584.46114806,0.00013587,2]
[333797267,1722519032463,-300.0,0.00013597,2]
[333797269,1722519032472,-183.30926888,0.00013597,2]
[333797271,1722519032481,-183.30926887,0.00013597,2]
[333797273,1722519032490,-183.30926887,0.00013598,2]
[333797275,1722519032500,-183.30926887,0.00013598,2]
[333797277,1722519032510,-2470.75829446,0.00013598,2]
[333797278,1722519032519,-183.30926887,0.00013598,2]
[333797280,1722519032528,-2000.0,0.00013598,2]
[333797282,1722519032538,-8950.04812443,0.00013598,2]
[333797284,1722519032550,-211.24137724,0.00013598,2]
[333797285,1722519032560,-4092.1954266,0.0001363,2]
[333797286,1722519032569,-167.759228,0.00013638,2]
[333797287,1722519032579,-2454.49897618,0.00013655,2]
[333797288,1722519032589,-367.7699373,0.00013673,2]
[333797289,1722519032598,-16009.26477809,0.00013686,2]
[333797290,1722519032717,-1380.94,0.00013687,2]
[333797291,1722519032727,-1380.94,0.00013687,2]
[333797292,1722519032736,-4657.27673119,0.00013688,2]
[333797293,1722519032745,-315213.446319,0.00013688,2]
[333797294,1722519032755,-1380.94,0.00013697,2]
[333797295,1722519032764,-1380.94,0.00013697,2]
[333797296,1722519032773,-1380.94,0.00013697,2]
[333797297,1722519032783,-1380.94,0.00013697,2]
[333797298,1722519032792,-1428.32536028,0.00013697,2]
[333797299,1722519032801,-30856.80662542,0.00013698,5]